Cogmind - Beta 14 @@@ ROGUE MODE // 2024.11.04 @ 00:00:25 Player: KURIIRI Result: Self-destructed Performance ------------- Evolutions (5) 2500 Regions Visited (28) 5600 Robots Destroyed (382) 1910 Value Destroyed (17597) 17597 Prototype IDs (62) 1240 Alien Tech Used (0) 0 Bonus (5073) 5073 TOTAL SCORE: 33920 Bonus ------- High Alert Combat Kills 1206 Follower Combat Kills 1692 Entered Garrisons 800 Network Hubs Disabled 400 Aligned with FarCom 300 Built Enhanced Grunts 300 A7 Reached Mainframe 300 Met R17 at Cetus 500 Friendly Fire -425 Cogmind --------- Core Integrity 468/1000 Matter 22/300 Energy 63/100 System Corruption 10% Temperature Cool (0) Movement Core (650) Ox12 Location -5/Factory Parts ------- > --- POWER (1) -------- (None) > --- PROPULSION (6) --- Gyrokinetic Inverter Gyrokinetic Inverter > --- UTILITY (8) ------ Advanced Cooling System Large Storage Unit Advanced Salvage Targeting Computer Centrium Medium Armor Plating Improved Hacking Suite Improved Hacking Suite Improved System Shield > --- WEAPON (2) ------- Heavy Plasma Cannon > --- INVENTORY (15) --- Centrium Heavy Treads Antigrav Array Long-range Terrain Scanner Precision Matter Filter Centrium Medium Armor Plating Experimental Thermal Shield Improved System Shield Compact HERF Cannon Enhanced Gauss Cannon Gamma Bomb Array Improved Remote Datajack Peak State ------------ > --- POWER ------------ F-cell Engine > --- PROPULSION ------- Improved Gravmag System Combat Airjet Combat Airjet Gravmag Array Linear Gravjet > --- UTILITY ---------- Large Storage Unit Advanced Terrain Scan Processor Centrium Medium Armor Plating Centrium Medium Armor Plating Improved Hacking Suite Improved Hacking Suite Improved System Shield Improved System Restoration Module > --- WEAPON ----------- Compact HERF Cannon Phasing Sabre > --- INVENTORY -------- Fission Core Centrium Heavy Treads Gravmag System Gravmag System Linear Gravjet Centrium Medium Armor Plating Experimental Thermal Shield Improved Hacking Suite Improved System Shield Heavy Plasma Cannon Magnetic Acceleration Cannon Gamma Bomb Array Heavy Rocket Launcher [Rating: 102] Favorites ----------- Power Micro Nuclear Core Engine Heavy Ion Engine Power Core Micro Nuclear Core Propulsion Light Treads Treads Light Treads Leg Enhanced Flexi-carbon Leg Wheel Compact Wheel Hover Unit Gravmag System Utility Large Storage Unit Device Long-range Terrain Scanner Storage Large Storage Unit Processor Advanced Terrain Scan Processor Hackware Improved Hacking Suite Protection Improved Medium Armor Plating Weapon Powered Hammer Energy Gun Variable Charge Gun Energy Cannon EM Pulse Cannon Ballistic Gun Flak Gun Ballistic Cannon Magnetic Acceleration Cannon Launcher Heavy Rocket Launcher Special Weapon Remote Datajack Impact Weapon Powered Hammer Slashing Weapon Phasing Sabre Special Melee Weapon Advanced Datajack Build | -11 -10 -10 -9 -9 -9 -8 -8 -8 -8 -8 -8 -8 -8 -7 -7 -7 -7 -7 -6 -6 -6 -6 -6 -6 -6 -5 -5 -5 ------- Run | Yrd Mat Min Mat Min Exi Min Mat Gar Mat Gar Mat Gar Mat Fac Was Fac Gar Fac Fac Was Fac Ext Cet Arc Hub Fac Was Fac Slots Evolved 10 | . . . 2 . . . 2 . . . . . . 2 . . . . 2 . . . . . . 2 . . Power . | . . . . . . . . . . . . . . . . . . . . . . . . . . . . . Propulsion 4 | . . . 1 . . . . . . . . . . 1 . . . . 1 . . . . . . 1 . . Utility 6 | . . . 1 . . . 2 . . . . . . 1 . . . . 1 . . . . . . 1 . . Weapon . | . . . . . . . . . . . . . . . . . . . . . . . . . . . . . Parts Attached 456 | 6 6 . 20 . . . 20 20 23 17 6 8 9 21 4 56 24 4 45 4 35 36 11 9 2 34 13 23 Power 43 | 1 1 . 2 . . . . . 1 2 1 . . 2 . 6 3 2 2 . 4 6 . 1 . 6 . 3 Engine 20 | 1 1 . 2 . . . . . 1 1 . . . 1 . 2 1 1 . . 1 5 . 1 . 2 . . Core 23 | . . . . . . . . . . 1 1 . . 1 . 4 2 1 2 . 3 1 . . . 4 . 3 Reactor . | . . . . . . . . . . . . . . . . . . . . . . . . . . . . . Propulsion 107 | 2 . . 4 . . . 7 3 6 2 2 2 3 5 . 17 5 . 11 1 8 11 3 2 . 8 2 3 Treads 31 | 2 . . 4 . . . 5 2 5 1 2 . 1 . . 2 1 . . . 2 4 . . . . . . Leg 1 | . . . . . . . . . . . . . . . . . . . . . . . 1 . . . . . Wheel 5 | . . . . . . . . 1 1 1 . . . . . 2 . . . . . . . . . . . . Hover 70 | . . . . . . . 2 . . . . 2 2 5 . 13 4 . 11 1 6 7 2 2 . 8 2 3 Flight . | . . . . . . . . . . . . . . . . . . . . . . . . . . . . . Utility 133 | 1 4 . 3 . . . 7 3 7 . 2 3 1 10 1 17 4 2 18 1 15 9 4 2 . 8 4 7 Device 44 | . . . . . . . . . 1 . . . 1 2 1 5 2 1 6 . 12 3 2 1 . 2 2 3 Storage 7 | 1 1 . . . . . . . 1 . . . . . . 2 . . . . 1 1 . . . . . . Processor 16 | . 1 . . . . . 1 . . . 1 . . 5 . 1 . . 2 1 1 . . . . 1 1 1 Hackware 17 | . . . 1 . . . . . 1 . . 1 . 2 . 3 . 1 5 . 1 . . 1 . . 1 . Protection 49 | . 2 . 2 . . . 6 3 4 . 1 2 . 1 . 6 2 . 5 . . 5 2 . . 5 . 3 Artifact . | . . . . . . . . . . . . . . . . . . . . . . . . . . . . . Weapon 173 | 2 1 . 11 . . . 6 14 9 13 1 3 5 4 3 16 12 . 14 2 8 10 4 4 2 12 7 10 Energy Gun 20 | 1 . . 4 . . . 1 . . . . 1 . 3 1 7 . . . 1 . 1 . . . . . . Energy Cannon 64 | . 1 . 3 . . . 4 3 3 1 1 . 1 . . 3 7 . 10 . 5 5 1 2 . 8 . 6 Ballistic Gun 14 | 1 . . 1 . . . . 4 3 2 . . 2 1 . . . . . . . . . . . . . . Ballistic Cannon 14 | . . . 2 . . . . 2 1 3 . . . . . . . . . . . 2 1 . . 2 . 1 Launcher 28 | . . . . . . . . 2 . 2 . 1 . . 2 . 5 . . 1 2 2 2 . . . 7 2 Special Weapon 3 | . . . . . . . . . . . . . . . . . . . 1 . . . . . . 1 . 1 Impact Weapon 25 | . . . 1 . . . 1 3 2 5 . 1 2 . . 6 . . 3 . 1 . . . . . . . Slashing Weapon 4 | . . . . . . . . . . . . . . . . . . . . . . . . 1 2 1 . . Piercing Weapon . | . . . . . . . . . . . . . . . . . . . . . . . . . . . . . Special Melee Weapon 1 | . . . . . . . . . . . . . . . . . . . . . . . . 1 . . . . Unidentified Prototypes 18 | . . . 1 . . . 3 . . . . . 1 . 1 1 . . 1 1 1 1 3 . . 3 1 . Parts Lost 86 | . 1 . 3 . . . . 7 4 3 5 2 . 5 . 6 4 2 12 . 4 7 2 . 1 8 1 9 Power 16 | . 1 . . . . . . 1 . . 1 . . 1 . 2 1 1 1 . 1 2 . . 1 . . 3 Propulsion 37 | . . . 1 . . . . 2 1 1 3 1 . 2 . 3 1 . 5 . 2 3 1 . . 6 1 4 Utility 22 | . . . 1 . . . . 2 2 2 1 . . 1 . 1 2 1 5 . 1 1 . . . 1 . 1 Weapon 11 | . . . 1 . . . . 2 1 . . 1 . 1 . . . . 1 . . 1 1 . . 1 . 1 Highest Loss Streak 6 | . 1 . 3 . . . . 2 2 2 3 1 . 3 . 2 2 2 5 . 2 2 1 . 1 6 1 6 To Critical Strikes 1 | . . . . . . . . . . . . . . . . . . . . . . . 1 . . . . . Average Slot Usage (%) 90 | . 99 100 99 100 100 100 96 87 93 90 84 91 95 86 100 99 82 83 81 89 90 89 82 86 86 88 68 75 Engine 3 | . 14 14 11 11 11 11 9 6 3 5 . . . . . 2 1 1 . . . 4 . 5 5 2 . . Core 3 | . . . . . . . . . . 4 9 9 9 4 7 4 5 3 5 6 6 1 6 . . 1 5 4 Treads 11 | . 28 28 33 33 33 33 26 23 19 22 15 10 15 . . 7 8 . . . . 7 . . . . . . Wheel 2 | . . . . . . . . 3 7 4 7 . . . . 7 11 . . . . . . . . . . . Hover 13 | . . . . . . . . . . . . 14 10 22 30 14 . 30 25 26 24 18 25 26 26 29 18 22 Device 4 | . . . . . . . . . . . . . . 7 7 3 4 21 13 . 5 2 6 6 6 4 5 2 Storage 6 | . 14 14 11 11 11 11 9 9 9 9 9 1 . . . 6 7 7 6 6 6 6 6 6 6 5 5 5 Processor 7 | . 5 . . . . . 8 9 9 6 8 9 9 19 23 11 7 7 9 17 6 6 . . . 4 10 12 Hackware 14 | . . . 11 11 11 11 9 9 13 9 9 16 18 14 15 17 9 2 11 20 25 20 20 20 20 16 16 17 Protection 7 | . 8 14 10 11 11 11 15 10 12 13 10 13 14 . . 4 6 . . . . 7 12 13 13 10 . 3 Energy Gun 2 | . 1 . 6 11 11 11 . . . . . 3 . 4 . 7 . . . 5 . . . . . . . . Energy Cannon 5 | . 12 14 10 11 11 11 16 6 4 1 6 2 8 1 . 2 4 . 4 . 4 5 . 2 5 2 . 3 Ballistic Gun 2 | . 14 14 1 . . . . 8 9 4 . . 2 1 . . . . . . . . . . . . . . Impact Weapon 3 | . . . . . . . . 1 2 4 9 7 6 7 7 4 7 7 1 . 5 2 . . . . . . Peak Build Rating 102 | 6 9 9 19 19 20 20 32 28 30 33 31 43 43 51 54 58 61 54 72 75 77 80 89 91 91 102 94 100 Average Rating 47 | 4 8 8 16 19 19 20 26 25 26 28 28 36 35 41 51 50 55 49 61 70 71 71 78 83 85 92 70 79 On Entrance 42 | . 6 8 9 19 19 20 20 28 24 29 26 27 43 32 50 54 50 49 54 68 69 74 80 78 85 79 78 67 Naked Turns . | . . . . . . . . . . . . . . . . . . . . . . . . . . . . . Heaviest Build 70 | 11 30 30 40 40 40 40 56 55 49 48 40 40 29 22 17 62 62 42 47 38 42 64 70 57 56 64 44 57 Greatest Support 80 | 40 40 40 60 60 60 60 60 60 63 63 40 40 40 35 35 44 75 36 48 48 48 80 54 54 54 63 44 56 Greatest Overweight (x) 15 | . . . . . . . . 2 4 4 3 2 1 1 . 3 3 1 15 . 1 4 2 1 1 2 1 1 Average Overweight (x) . | . . . . . . . . . 1 1 1 . . . . . 1 . . . . . . . . . . . Largest Inventory Capacity 15 | 8 15 15 15 15 15 15 15 15 15 15 15 15 5 5 5 15 15 15 15 15 15 15 15 15 15 15 15 15 Average Capacity 13 | 7 10 15 15 15 15 15 15 15 15 15 15 7 5 5 5 11 15 15 15 15 15 15 15 15 15 15 15 15 Most Carried 15 | 2 13 13 15 15 15 15 15 15 15 15 15 12 5 5 5 15 15 11 15 15 15 15 15 15 15 15 15 15 Average Carried 11 | . 8 12 14 15 14 15 14 9 11 14 13 6 4 4 5 10 12 9 12 14 14 14 14 13 14 12 14 14 Final Capacity 15 | 8 15 15 15 15 15 15 15 15 15 15 15 5 5 5 5 15 15 15 15 15 15 15 15 15 15 15 15 15 Final Carried 15 | 2 12 13 15 15 15 15 15 5 15 14 12 4 5 5 5 15 10 10 15 15 15 15 15 13 15 14 15 13 Class Distribution -------------------- 32% | Hacker-Mutant 22% | Hacker-Scout 19% | Mutant 14% | Scavenger-Mutant 6% | Scout Dominant Class ---------------- Mutant | -10/Materials Mutant | -10/Mines Mutant | -9/Materials Scavenger-Mutant | -9/Mines Scavenger-Mutant | -9/Exiles Scavenger-Mutant | -8/Mines Scavenger-Mutant | -8/Materials Scavenger-Mutant | -8/Garrison Hacker-Mutant | -8/Materials Mutant | -8/Garrison Mutant | -8/Materials Hacker-Mutant | -8/Garrison Hacker-Mutant | -8/Materials Hacker-Scout | -7/Factory Hacker-Scout | -7/Waste Hacker-Mutant | -7/Factory Mutant | -7/Garrison Scout | -7/Factory Hacker-Scout | -6/Factory Hacker-Mutant | -6/Waste Hacker-Scout | -6/Factory Hacker-Mutant | -6/Extension Commander-Mutant | -6/Cetus Commander-Mutant | -6/Archives Commander-Mutant | -6/Hub_04(d) Hacker-Mutant | -5/Factory Hacker-Mutant | -5/Waste Hacker-Mutant | -5/Factory Resources | -11 -10 -10 -9 -9 -9 -8 -8 -8 -8 -8 -8 -8 -8 -7 -7 -7 -7 -7 -6 -6 -6 -6 -6 -6 -6 -5 -5 -5 ----------- Run | Yrd Mat Min Mat Min Exi Min Mat Gar Mat Gar Mat Gar Mat Fac Was Fac Gar Fac Fac Was Fac Ext Cet Arc Hub Fac Was Fac Matter Collected 7378 | 159 218 . 255 . . . 196 466 682 603 84 143 142 366 40 561 431 105 433 404 388 482 188 67 50 409 374 132 Remotely . | . . . . . . . . . . . . . . . . . . . . . . . . . . . . . Salvage Created 16922 | 34 642 19 1250 92 . . 755 672 968 776 308 170 679 563 . 1176 2066 134 694 587 439 1993 299 375 . 818 1039 374 Parts 680 | 2 46 1 79 7 . . 35 28 58 28 5 7 35 18 . 44 78 3 29 . 16 66 13 26 . 35 1 20 Haulers Intercepted 12 | . 2 . 6 . . . 2 . 2 . . . . . . . . . . . . . . . . . . . Recyclers Shooed 5 | . 1 . 1 . . . . . . . . . . 1 . . . . . . . 2 . . . . . . Parts Field Recycled . | . . . . . . . . . . . . . . . . . . . . . . . . . . . . . Retrieved Matter . | . . . . . . . . . . . . . . . . . . . . . . . . . . . . . Parts Self-Destructed . | . . . . . . . . . . . . . . . . . . . . . . . . . . . . . Prevented . | . . . . . . . . . . . . . . . . . . . . . . . . . . . . . Kills | -11 -10 -10 -9 -9 -9 -8 -8 -8 -8 -8 -8 -8 -8 -7 -7 -7 -7 -7 -6 -6 -6 -6 -6 -6 -6 -5 -5 -5 ------- Run | Yrd Mat Min Mat Min Exi Min Mat Gar Mat Gar Mat Gar Mat Fac Was Fac Gar Fac Fac Was Fac Ext Cet Arc Hub Fac Was Fac Combat Hostiles Destroyed 277 | . 18 1 23 2 . . 13 20 20 22 5 6 13 6 . 22 33 1 14 4 6 19 3 1 . 14 6 5 Melee 13 | . . . . . . . . 1 . 1 . 1 1 2 . 1 1 1 . . 1 1 . . . 2 . . Guns 53 | . 7 . 9 1 . . . 6 9 6 . . 2 3 . 10 . . . . . . . . . . . . Cannons 108 | . 10 1 11 1 . . 11 5 6 6 1 . 9 . . 4 9 . 12 . 1 8 . 1 . 9 . 3 AOE 58 | . 1 . 2 . . . 1 7 5 8 1 4 1 . . . 13 . . 4 2 . 1 . . . 6 2 Classes Destroyed 20 | 1 6 . 2 . . . 2 2 2 1 . . . 2 . . . . . 1 . . . . . . . 1 Worker 9 | . 1 . 1 . . . . . 1 . . . 1 2 . 1 . 1 . . . . . . . . . 1 Builder 9 | . . . 1 . . . . . 2 . 1 . . . . 2 . 2 . . . 1 . . . . . . Tunneler 3 | . . . . . . . . . 1 . . . . 1 . . . . 1 . . . . . . . . . Hauler 12 | . 2 . 6 . . . 2 . 2 . . . . . . . . . . . . . . . . . . . Recycler 15 | 1 . . 1 . . . . . 1 . . . 1 2 . 1 . . . . . 6 . . . 1 . 1 Mechanic 1 | . . . . . . . . . . . . . . 1 . . . . . . . . . . . . . . Operator 19 | . 2 . 2 . . . 1 . 1 . . . 1 . . 1 . 1 1 . . 1 . 8 . . . . Watcher 37 | . 2 . 2 . . . 1 . 2 1 1 . 4 4 . 4 . . 4 . 4 2 2 . . 2 . 2 Swarmer 71 | . 11 1 10 . . . 3 5 2 4 . 4 6 . . 3 12 . 6 . . . . . . 4 . . Cutter 2 | . . . . . . . . . . . . . . . . . . . . . . . . . . . . 2 Grunt 105 | . 7 . 10 2 . . 5 8 10 15 2 2 4 4 . 11 10 1 . . 2 8 . . . 3 . 1 Brawler 4 | . . . . . . . 1 . 1 1 . . . . . . . . . . 1 . . . . . . . Duelist 5 | . . . . . . . . 1 1 . . . . 1 . . . . . . . . . . . 2 . . Sentry 38 | . . . 3 . . . 3 3 4 . 2 . 3 . . 1 11 . 2 . . 5 . 1 . . . . Specialist 2 | . . . . . . . . 1 . . . . . . . . . . . . . . . . . 1 . . Hunter 12 | . . . . . . . 1 2 1 1 1 . . . . . . . . . 1 4 . . . 1 . . Programmer 22 | . . . . . . . . . . . . . . 1 . 7 . . 6 . 2 1 . . . 3 . 2 Heavy 1 | . . . . . . . . . 1 . . . . . . . . . . . . . . . . . . . Behemoth 1 | . . . . . . . . . . 1 . . . . . . . . . . . . . . . . . . Compactor 10 | . . . . . . . . . . . . . . . . . . . . 4 . . . . . . 6 . Cetus Guard 3 | . . . . . . . . . . . . . . . . . . . . . . . 3 . . . . . Butcher 1 | . . . . . . . . . . . . . . . . . . . . . . 1 . . . . . . Best Kill Streak 9 | 1 5 1 6 2 . . 3 6 3 4 2 4 6 2 . 3 9 2 3 4 2 3 3 4 . 3 2 3 Combat Bots Only 9 | . 3 1 3 2 . . 3 6 3 4 1 4 4 2 . 3 9 1 3 4 2 3 2 1 . 3 2 2 Max Kills in Single Turn 3 | 1 1 1 3 1 . . 1 2 2 2 1 3 2 1 . 1 2 1 1 1 2 1 2 1 . 1 2 1 Gunslinging . | . . . . . . . . . . . . . . . . . . . . . . . . . . . . . Exploded 3 | . 1 . 1 . . . 1 2 2 2 1 3 1 . . . 2 . . 1 2 . 1 . . . 2 1 Melee 1 | . . . . . . . . 1 . 1 . 1 1 1 . 1 1 1 . . 1 1 . . . 1 . . Uniques/NPCs Destroyed . | . . . . . . . . . . . . . . . . . . . . . . . . . . . . . Combat | -11 -10 -10 -9 -9 -9 -8 -8 -8 -8 -8 -8 -8 -8 -7 -7 -7 -7 -7 -6 -6 -6 -6 -6 -6 -6 -5 -5 -5 -------- Run | Yrd Mat Min Mat Min Exi Min Mat Gar Mat Gar Mat Gar Mat Fac Was Fac Gar Fac Fac Was Fac Ext Cet Arc Hub Fac Was Fac Hostile Shots Fired 1999 | . 63 11 77 7 . . 33 138 72 88 32 18 32 44 . 144 385 16 164 . 47 316 19 7 26 159 . 101 Missed 635 | . 22 7 24 1 . . 11 38 17 29 6 8 14 16 . 45 110 8 63 . 15 116 4 1 4 53 . 23 Damage Taken 19289 | . 352 30 556 76 . . 291 1664 1002 1014 393 218 241 427 . 1337 2426 234 1185 30 567 2310 383 147 603 1981 80 1742 Core 2418 | . 58 . 55 . . . 6 125 75 233 46 26 13 94 . 248 130 92 245 10 108 260 62 . . 216 33 283 Absorbed by Shields 348 | . . . . . . . . . . . . . . . . . . . . . . 271 77 . . . . . Reduced by Siege Mode 97 | . . . . . . . . . . . . . . . . . 97 . . . . . . . . . . . Redirected to Shielding 9 | . 2 . . . . . . 7 . . . . . . . . . . . . . . . . . . . . Ignored by Resistances 99 | . . . . . . . . . . . . . . . . . . . . . . . . . . 99 . . Regen/Repaired (Parts) 2613 | . . . 100 . . . . . 427 . . . . . . 185 . . 261 . 395 . . . . 1245 . . Core Remaining (%) 50 | 100 . 76 . . . 86 . . . . . . 4 . . . . 19 . . . . . . 19 . . . Volleys Fired 1070 | . 64 2 73 6 . . 34 75 56 62 18 21 28 56 . 55 102 . 111 26 37 77 6 5 4 79 33 40 Largest 2 | . 2 2 2 2 . . 2 2 2 2 1 2 2 1 . 2 1 . 1 1 1 2 1 1 1 1 1 1 Hottest 225 | . 80 80 108 108 . . 126 126 91 72 63 99 91 80 . 225 90 . 90 39 88 165 94 94 94 94 39 94 Shots Fired 1390 | . 128 4 139 11 . . 62 116 98 83 18 22 42 56 . 75 105 . 111 26 37 89 6 5 4 79 34 40 Gun 403 | . 72 2 66 5 . . . 46 53 28 . 2 14 41 . 63 . . . . 2 9 . . . . . . Cannon 858 | . 56 2 73 6 . . 62 63 45 44 18 3 28 15 . 12 90 . 108 . 33 78 1 5 4 79 . 33 Launcher 126 | . . . . . . . . 7 . 11 . 17 . . . . 15 . . 26 2 2 5 . . . 34 7 Special 3 | . . . . . . . . . . . . . . . . . . . 3 . . . . . . . . . Kinetic 374 | . 64 2 22 . . . . 56 77 66 . . 14 29 . . . . . . . 18 . . . 17 . 9 Thermal 406 | . 64 2 22 . . . . . . . . 2 . 12 . 63 21 . 99 . 33 35 . . . 37 . 16 Explosive 89 | . . . . . . . . 7 . . . . . . . . 15 . . 26 . . . . . . 34 7 Electromagnetic 518 | . . . 95 11 . . 62 53 21 17 18 20 28 15 . 12 69 . 9 . 4 36 6 5 4 25 . 8 Robot Hit Streak 28 | . 11 4 28 4 . . 13 16 17 10 9 . 12 6 . 14 22 . 13 9 3 12 5 4 2 5 5 7 Robot Miss Streak 8 | . 5 . 3 3 . . 2 4 5 8 1 1 3 6 . 3 7 . 5 1 3 3 1 1 1 4 4 2 Penetration Max . | . . . . . . . . . . . . . . . . . . . . . . . . . . . . . Secondary Targets 2 | . 1 . . . . . . 1 . . . . . . . . . . . . . . . . . . . . Max Gunslinging Chain 1 | . 1 . . . . . . 1 . . . . . . . . . . . . . . . . . . . . Shots Hit Robots 1029 | . 71 3 94 5 . . 46 80 85 61 23 4 38 55 . 76 78 6 56 21 23 80 3 26 1 55 20 19 Core Hits 678 | . 34 1 34 3 . . 21 82 107 82 5 6 30 29 . 34 48 . 15 11 12 40 24 11 . 17 18 14 Critical Kills 10 | . 1 . 1 . . . . . . 1 . . . 1 . 1 2 . 1 . 1 1 . . . . . . Critical Parts Destroyed 21 | . . . 1 . . . . . . . 1 . 1 2 . 6 . 1 2 . 2 5 . . . . . . Critical Strikes 39 | . 2 . 4 . . . . 1 . 3 1 . 1 3 . 7 3 1 3 . 3 6 . . . . . 1 Burn 1 | . 1 . . . . . . . . . . . . . . . . . . . . . . . . . . . Meltdown 4 | . . . 1 . . . . . . . . . . . . . 1 . . . 1 1 . . . . . . Destroy 1 | . 1 . . . . . . . . . . . . . . . . . . . . . . . . . . . Blast 4 | . . . . . . . . 1 . 2 . . . . . . . . . . . . . . . . . 1 Corrupt 3 | . . . 2 . . . . . . . . . . . . . 1 . . . . . . . . . . . Smash 26 | . . . 1 . . . . . . 1 1 . 1 3 . 7 1 1 3 . 2 5 . . . . . . Melee Attacks 422 | . . . 3 . . . 4 5 12 43 11 13 30 32 . 59 27 24 29 . 46 29 . 23 4 28 . . Impact 367 | . . . 3 . . . 4 5 12 43 11 13 30 32 . 59 27 24 29 . 46 29 . . . . . . Slashing 52 | . . . . . . . . . . . . . . . . . . . . . . . . 20 4 28 . . Piercing . | . . . . . . . . . . . . . . . . . . . . . . . . . . . . . Sneak Attacks 28 | . . . 1 . . . . . . . 1 . 1 3 . 5 . 3 1 . 1 . . 11 . 1 . . Combat Hostiles 2 | . . . . . . . . . . . . . . . . 2 . . . . . . . . . . . . Follow-up Attacks . | . . . . . . . . . . . . . . . . . . . . . . . . . . . . . Damage Inflicted 45624 | 2 946 45 2259 134 . . 1435 2146 2245 2083 856 389 1181 1458 . 2990 4189 426 2078 3550 1123 3442 796 1609 45 2466 6046 1685 Guns 5704 | . 321 8 614 33 . . . 930 989 550 . . 143 599 . 1290 . . . . 26 201 . . . . . . Cannons 17470 | . 622 37 1388 84 . . 1256 858 898 969 419 . 779 156 . 424 2666 . 1513 . 425 2028 33 137 45 1846 . 887 Explosions 15223 | . . . 196 . . . 170 342 333 436 84 223 83 . . . 1280 . . 3550 227 465 763 . . 227 6046 798 Melee 7140 | . . . 46 . . . . . . 128 353 166 176 703 . 1276 243 426 565 . 445 748 . 1472 . 393 . . Ramming 87 | 2 3 . 15 17 . . 9 16 25 . . . . . . . . . . . . . . . . . . . Kinetic 6106 | . 259 8 254 . . . . 1054 1427 1519 . . 143 463 . . . . . . . 414 . . . 373 . 192 Thermal 8101 | . 684 37 547 . . . 170 155 333 . 84 . 83 136 . 1290 639 . 1241 . 451 853 153 . . 938 . 307 Explosive 11861 | . . . . . . . . 187 . . . . . . . . 1280 . . 3550 . . . . . . 6046 798 Electromagnetic 12329 | . . . 1397 117 . . 1256 734 460 436 419 223 779 156 . 424 2027 . 272 . 227 1427 643 137 45 762 . 388 Impact 5275 | . . . 46 . . . . . . 128 353 166 176 703 . 1276 243 426 565 . 445 748 . . . . . . Slashing 1865 | . . . . . . . . . . . . . . . . . . . . . . . . 1472 . 393 . . Piercing . | . . . . . . . . . . . . . . . . . . . . . . . . . . . . . Highest Corruption 10 | . . . . . . . . . 2 . . . . 1 . 5 2 4 1 4 4 3 3 3 2 7 7 10 Average Corruption 2 | . . . . . . . . . 1 . . . . 1 . 2 2 2 1 2 1 2 3 1 1 3 7 7 Corruption Purged 30 | . . . . . . . . . 2 . . . . 1 . 7 . 4 . . 9 . . 3 2 2 . . Corruption Blocked 8 | . . . . . . . . . . . . . . . . . . . . 8 . . . . . . . . Effects 176 | . . . . . . . . . 3 . . . . 3 . 13 25 2 21 4 29 34 5 3 1 6 9 18 Message Errors 48 | . . . . . . . . . 1 . . . . 2 . 4 6 . 6 2 8 8 2 . . 2 1 6 Matter Fused 37 | . . . . . . . . . 2 . . . . 1 . 2 8 . 4 1 4 6 1 1 . 1 1 5 Heat Flow Errors 24 | . . . . . . . . . . . . . . . . 3 3 1 2 . 4 3 2 2 1 . 1 2 Energy Discharges 22 | . . . . . . . . . . . . . . . . 1 2 . 2 1 7 4 . . . 1 1 3 Parts Rejected 1 | . . . . . . . . . . . . . . . . . . . . . . . . . . . 1 . Parts Fused 4 | . . . . . . . . . . . . . . . . 1 . 1 . . 2 . . . . . . . Data Loss (minor) 22 | . . . . . . . . . . . . . . . . . 3 . 6 . 4 5 . . . 1 3 . Data Loss (major) 5 | . . . . . . . . . . . . . . . . 1 . . 1 . . 2 . . . 1 . . Misfires 10 | . . . . . . . . . . . . . . . . . 3 . . . . 6 . . . . 1 . Alerts 3 | . . . . . . . . . . . . . . . . 1 . . . . . . . . . . . 2 Overload Shots 3 | . . . . . . . . . . . . . . . . 3 . . . . . . . . . . . . Effects 1 | . . . . . . . . . . . . . . . . 1 . . . . . . . . . . . . Heat Surge 1 | . . . . . . . . . . . . . . . . 1 . . . . . . . . . . . . Overflow Damage 3330 | . . . 111 . . . 50 13 4 32 137 41 91 279 . 600 134 252 295 . 185 236 . 499 5 227 22 117 Projectiles 429 | . . . 33 . . . 50 8 . . 9 . 35 . . 8 17 . 90 . . 29 . . 5 56 . 89 Explosions 277 | . . . 32 . . . . 5 4 . . . . . . . 95 . . . . . . . . 91 22 28 Melee 2624 | . . . 46 . . . . . . 32 128 41 56 279 . 592 22 252 205 . 185 207 . 499 . 80 . . Knockbacks 60 | . . . 1 1 . . . 3 11 21 1 . . . . 7 2 1 1 . 1 3 . . . 6 . 1 Impact 15 | . . . 1 1 . . . . . . 1 . . . . 7 2 1 1 . 1 . . . . . . . Kinetic 44 | . . . . . . . . 3 11 20 . . . . . . . . . . . 3 . . . 6 . 1 Secondary 1 | . . . . . . . . . . 1 . . . . . . . . . . . . . . . . . . Self-Inflicted Damage 731 | . . . . . . . . 76 6 . 34 65 . . . . 154 . . 30 13 . 21 . . 148 82 102 Shots 25 | . . . . . . . . 3 . . 1 5 . . . . 4 . . 1 1 . 2 . . 3 3 2 Rammed 20 | . 1 1 3 2 . . 2 7 4 . . . . . . . . . . . . . . . . . . . Targets Rammed 22 | 1 1 1 3 2 . . 2 7 5 . . . . . . . . . . . . . . . . . . . Kicked . | . . . . . . . . . . . . . . . . . . . . . . . . . . . . . Crushed 2 | 1 . . . . . . . . 1 . . . . . . . . . . . . . . . . . . . Highest Temperature 589 | . 197 75 255 297 . . 336 397 252 183 103 84 183 124 . 386 350 266 340 12 224 372 123 263 234 440 240 589 Average Temperature 94 | . 61 40 80 142 . . 137 153 56 64 43 24 62 36 . 108 124 148 81 8 76 68 50 126 64 115 105 112 Received Heat Transfer 5447 | . 66 . 102 42 . . 63 621 405 432 162 81 45 198 . 354 606 9 120 . 54 931 . 18 171 459 . 508 Effects 34 | . . . . . . . 1 7 . . . . . . . 3 9 . 3 . . . . 1 . 5 . 5 Shutdowns 4 | . . . . . . . . 1 . . . . . . . 1 . . . . . . . . . 1 . 1 Energy Bleed 8 | . . . . . . . . 1 . . . . . . . . 3 . 1 . . . . 1 . 2 . . Interference 12 | . . . . . . . . 4 . . . . . . . . 6 . 1 . . . . . . 1 . . Matter Decay 2 | . . . . . . . . . . . . . . . . 1 . . . . . . . . . . . 1 Short Circuit 5 | . . . . . . . . . . . . . . . . 1 . . . . . . . . . 1 . 3 Damage (minor) 3 | . . . . . . . 1 1 . . . . . . . . . . 1 . . . . . . . . . Siege Activations 2 | . . . . . . . . . . . . . . . . . 2 . . . . . . . . . . . Total Turns 52 | . . . . . . . . . . . . . . . . . 52 . . . . . . . . . . . Longest Duration 42 | . . . . . . . . . . . . . . . . . 42 . . . . . . . . . . . Robots Corrupted 67 | . . . 3 . . . 1 1 . 2 3 1 2 5 . 11 12 1 5 . 2 13 2 . . 3 . . Combat Hostiles 42 | . . . . . . . 1 1 . 1 3 1 . 1 . 6 10 . 2 . 1 10 2 . . 3 . . Parts Fried 166 | . . . 9 . . . 11 6 4 2 13 3 5 13 . 17 20 6 15 . 7 23 3 . . 7 . 2 Impact Corruptions 83 | . . . 3 . . . . . . 3 5 2 3 12 . 20 1 9 10 . 6 9 . . . . . . Robots Melted 5 | . . . 1 . . . . . . . . . . . . 1 1 . . . 1 1 . . . . . . Combat Hostiles 3 | . . . 1 . . . . . . . . . . . . 1 . . . . 1 . . . . . . . Parts Melted 36 | . 3 . 2 . . . . 2 1 . . . . 1 . 8 2 . 8 . 3 4 . . . 2 . . Heat Transferred 11866 | . 1591 74 953 . . . 200 150 350 . 100 . 100 273 . 2354 1000 . 1399 . 494 1178 100 . . 1150 . 400 Parts Sabotaged . | . . . . . . . . . . . . . . . . . . . . . . . . . . . . . Parts Stolen . | . . . . . . . . . . . . . . . . . . . . . . . . . . . . . Parts Stripped . | . . . . . . . . . . . . . . . . . . . . . . . . . . . . . Power Chain Reactions 22 | . . . 4 . . . 3 2 4 1 1 1 2 . . . . . . . . 1 2 . . 1 . . Alert | -11 -10 -10 -9 -9 -9 -8 -8 -8 -8 -8 -8 -8 -8 -7 -7 -7 -7 -7 -6 -6 -6 -6 -6 -6 -6 -5 -5 -5 ------- Run | Yrd Mat Min Mat Min Exi Min Mat Gar Mat Gar Mat Gar Mat Fac Was Fac Gar Fac Fac Was Fac Ext Cet Arc Hub Fac Was Fac Peak Influence 1728 | 5 280 81 541 164 . . 238 979 484 1177 647 825 721 419 30 429 1728 1243 543 153 169 391 335 369 202 377 319 418 Initial 907 | . 3 30 31 76 . . . . 477 60 573 397 401 83 30 21 126 907 540 80 107 2 113 134 128 82 95 223 Average 274 | 2 100 44 316 93 . . 62 473 157 605 570 715 377 211 30 175 929 1051 231 122 64 106 247 330 102 236 250 279 Maximum Alert Level 5 | . 1 . 2 . . . 1 3 2 4 2 3 3 2 . 2 5 4 2 . . 1 1 1 1 1 1 2 Low Security (%) 50 | 100 91 100 23 100 . 100 91 14 68 14 . . 13 36 100 57 5 . 42 100 100 83 10 4 96 30 26 . Level 1 29 | . 8 . 46 . . . 8 25 18 11 . 4 38 60 . 40 19 . 42 . . 16 89 95 3 69 73 97 Level 2 11 | . . . 29 . . . . 41 12 44 100 26 44 2 . 2 7 . 14 . . . . . . . . 2 Level 3 6 | . . . . . . . . 18 . 25 . 68 4 . . . 25 85 . . . . . . . . . . Level 4 1 | . . . . . . . . . . 4 . . . . . . 30 14 . . . . . . . . . . Level 5 . | . . . . . . . . . . . . . . . . . 11 . . . . . . . . . . . High Security . | . . . . . . . . . . . . . . . . . . . . . . . . . . . . . Max Security . | . . . . . . . . . . . . . . . . . . . . . . . . . . . . . Squads Dispatched 108 | . 6 . 5 . . . 5 . 4 . 3 . 4 7 . 19 . 7 23 . 7 3 . . 4 7 . 4 Investigation 62 | . 5 . 3 . . . 3 . 1 . 2 . 1 4 . 12 . 3 15 . 4 2 . . 3 3 . 1 Extermination 20 | . . . . . . . . . . . . . . 2 . 7 . 1 6 . 2 . . . . 1 . 1 Reinforcement 22 | . 1 . 2 . . . 2 . 3 . 1 . 3 1 . . . 2 2 . 1 1 . . 1 . . 2 Assault 1 | . . . . . . . . . . . . . . . . . . 1 . . . . . . . . . . Garrison 3 | . . . . . . . . . . . . . . . . . . . . . . . . . . 3 . . Intercept . | . . . . . . . . . . . . . . . . . . . . . . . . . . . . . Searches Triggered . | . . . . . . . . . . . . . . . . . . . . . . . . . . . . . Construction Impeded 2 | . . . . . . . . . . . 1 . . . . . . 1 . . . . . . . . . . Haulers Reinforced . | . . . . . . . . . . . . . . . . . . . . . . . . . . . . . Active Scanning Responses . | . . . . . . . . . . . . . . . . . . . . . . . . . . . . . Cargo Convoy Interrupts 1 | . . . . . . . . . . . . . . . . . . . . . . . . . . 1 . . Stealth | -11 -10 -10 -9 -9 -9 -8 -8 -8 -8 -8 -8 -8 -8 -7 -7 -7 -7 -7 -6 -6 -6 -6 -6 -6 -6 -5 -5 -5 --------- Run | Yrd Mat Min Mat Min Exi Min Mat Gar Mat Gar Mat Gar Mat Fac Was Fac Gar Fac Fac Was Fac Ext Cet Arc Hub Fac Was Fac Distress Signals 25 | . 3 . 2 . . . 5 . . 1 3 . 3 1 . 1 . . 1 . . 1 2 . 1 . . 1 Communications Jammed . | . . . . . . . . . . . . . . . . . . . . . . . . . . . . . Distress Signals . | . . . . . . . . . . . . . . . . . . . . . . . . . . . . . Times Spotted 492 | . 28 3 40 2 . . 16 26 30 31 11 7 20 19 . 41 38 11 30 6 15 34 8 11 20 24 6 15 Peak Tracking Total 19 | . 4 3 5 1 . . 3 6 3 4 5 3 6 4 . 4 5 6 5 4 5 5 5 2 19 3 4 7 Tactical Retreats 46 | . 5 . 2 . . . 1 1 1 2 . 1 2 3 . 4 4 2 7 . 2 3 . . 2 2 . 2 Traps | -11 -10 -10 -9 -9 -9 -8 -8 -8 -8 -8 -8 -8 -8 -7 -7 -7 -7 -7 -6 -6 -6 -6 -6 -6 -6 -5 -5 -5 ------- Run | Yrd Mat Min Mat Min Exi Min Mat Gar Mat Gar Mat Gar Mat Fac Was Fac Gar Fac Fac Was Fac Ext Cet Arc Hub Fac Was Fac Traps Triggered 29 | . 3 . . . . . . 1 . 1 1 . 2 3 . 3 7 1 2 . 3 . . . . 2 . . Indirectly . | . . . . . . . . . . . . . . . . . . . . . . . . . . . . . Trap Hack Attempts . | . . . . . . . . . . . . . . . . . . . . . . . . . . . . . Triggered . | . . . . . . . . . . . . . . . . . . . . . . . . . . . . . Disarmed 5 | . . . . . . . . . . . . . . . . . . . . . . 5 . . . . . . Reprogrammed 8 | . . . . . . . 6 . . . . . . . . . . . . . . . . . . 2 . . Reused . | . . . . . . . . . . . . . . . . . . . . . . . . . . . . . Traps Extracted . | . . . . . . . . . . . . . . . . . . . . . . . . . . . . . Installed . | . . . . . . . . . . . . . . . . . . . . . . . . . . . . . Triggered 2 | . . . . . . . . . . . . . . . . . . . . . 1 . . . . 1 . . Machines | -11 -10 -10 -9 -9 -9 -8 -8 -8 -8 -8 -8 -8 -8 -7 -7 -7 -7 -7 -6 -6 -6 -6 -6 -6 -6 -5 -5 -5 ---------- Run | Yrd Mat Min Mat Min Exi Min Mat Gar Mat Gar Mat Gar Mat Fac Was Fac Gar Fac Fac Was Fac Ext Cet Arc Hub Fac Was Fac Machines Disabled 58 | . . . 2 2 . . 2 9 . 8 . 8 . 1 . . 9 . 2 . . 7 . 1 2 4 . 1 Max in Single Turn 2 | . . . 1 1 . . 1 2 . 1 . 2 . 1 . . 2 . 1 . . 1 . 1 1 2 . 1 Garrison Access 10 | . . . . . . . . . . . . . . 1 . 2 . . 1 . 3 . . . 1 1 . 1 Garrison Relay 19 | . . . . . . . . 5 . 5 . 4 . . . . 5 . . . . . . . . . . . Phase Generator 2 | . . . . . . . . 1 . . . . . . . . 1 . . . . . . . . . . . Network Hub 2 | . . . . . . . . . . . . . . . . . . . . . . . . . 2 . . . Machines Repaired . | . . . . . . . . . . . . . . . . . . . . . . . . . . . . . Machines Dismantled . | . . . . . . . . . . . . . . . . . . . . . . . . . . . . . Machines Sabotaged 1 | . . . . . . . . . . . . . . . . . . . . . . . . . 1 . . . Overloaded Fab Kills . | . . . . . . . . . . . . . . . . . . . . . . . . . . . . . Hacking | -11 -10 -10 -9 -9 -9 -8 -8 -8 -8 -8 -8 -8 -8 -7 -7 -7 -7 -7 -6 -6 -6 -6 -6 -6 -6 -5 -5 -5 --------- Run | Yrd Mat Min Mat Min Exi Min Mat Gar Mat Gar Mat Gar Mat Fac Was Fac Gar Fac Fac Was Fac Ext Cet Arc Hub Fac Was Fac Machines Accessed 203 | . 8 . 11 . 2 . 11 4 10 4 2 2 5 11 . 34 2 4 30 . 22 16 2 . 6 14 . 3 Terminals 124 | . 6 . 8 . . . 9 4 7 4 1 2 3 4 . 15 2 3 15 . 11 15 2 . 5 7 . 1 Fabricators 20 | . . . . . . . . . . . . . . 2 . 6 . . 6 . 3 . . . . 2 . 1 Repair Stations 17 | . . . 1 . . . . . 2 . . . . 2 . 3 . . 3 . 4 . . . . 2 . . Recycling Units 7 | . 2 . 1 . . . . . . . . . . . . 2 . . . . . 1 . . . 1 . . Scanalyzers 16 | . . . 1 . . . 1 . . . . . 2 2 . 4 . 1 3 . 1 . . . . 1 . . Garrison Access 17 | . . . . . . . 1 . 1 . 1 . . 1 . 4 . . 3 . 3 . . . 1 1 . 1 Total Hacks 663 | . 24 . 37 . 2 . 33 8 39 8 5 7 27 34 . 104 5 13 85 . 74 51 6 . 21 73 . 7 Successful 393 | . 11 . 26 . 2 . 24 2 22 3 2 1 16 22 . 64 2 4 47 . 52 26 4 . 15 44 . 4 Failed 266 | . 13 . 10 . . . 9 6 17 5 3 6 11 12 . 40 3 9 38 . 21 24 2 . 6 28 . 3 Catastrophic 26 | . . . 1 . . . . 1 1 1 1 1 1 2 . 5 1 1 2 . 2 4 . . . 2 . . Database Lockouts 4 | . . . 1 . . . . . . . . . . . . . . . . . 1 1 . . . 1 . . Manual 299 | . 19 . 19 . 1 . 26 1 21 1 3 . 7 13 . 41 1 8 20 . 31 37 2 . 14 33 . 1 Terminals 419 | . 21 . 24 . . . 28 8 30 8 3 7 9 16 . 48 5 11 44 . 41 49 6 . 19 41 . 1 Fabricators 54 | . . . . . . . . . . . . . . 4 . 18 . . 17 . 7 . . . . 4 . 4 Repair Stations 71 | . . . 6 . . . . . 8 . . . . 6 . 15 . . 7 . 13 . . . . 16 . . Recycling Units 13 | . 3 . 1 . . . . . . . . . . . . 4 . . . . . 2 . . . 3 . . Scanalyzers 73 | . . . 6 . . . 3 . . . . . 18 6 . 11 . 2 9 . 10 . . . . 8 . . Garrison Access 31 | . . . . . . . 2 . 1 . 2 . . 2 . 8 . . 8 . 3 . . . 2 1 . 2 Terminal Hacks 144 | . 6 . 12 . 2 . 9 2 11 3 1 1 4 5 . 15 2 1 12 . 11 21 4 . 9 13 . . Record 4 | . . . . . 1 . . . . . . . . . . . . . . . . . 3 . . . . . Part Schematic 10 | . . . . . . . 2 . . . . . . . . 1 . . 1 . 3 1 . . 1 1 . . Robot Analysis 19 | . 4 . 3 . . . . . 3 . . . . . . 2 . . 1 . 1 4 . . 1 . . . Prototype ID Bank 9 | . 1 . 1 . . . . . 2 . . . . . . 2 . . 1 . . 1 . . 1 . . . Open Door 9 | . . . . . . . . . . . . . . . . . . . . . . 8 1 . . . . . Level Access Points 1 | . . . . . . . . . . . . . . . . . . . . . . . . . . 1 . . Branch Access Points 3 | . . . . . . . . . . . . . 1 . . 1 . . . . . . . . . 1 . . Emergency Access Points 3 | . . . . . . . . 1 . 1 . . . . . . 1 . . . . . . . . . . . Machine Index 1 | . . . . . . . . . . . . . . . . . . . 1 . . . . . . . . . Terminal Index 7 | . . . 2 . . . . . . . . . . 1 . 1 . 1 1 . . . . . . 1 . . Fabricator Index 4 | . . . . . . . . . . . . . . . . 1 . . 1 . 1 . . . . 1 . . Repair Station Index 1 | . . . . . . . . . . . . . . . . . . . . . . . . . . 1 . . Recycling Unit Index 1 | . . . . . . . . . . . . . . . . . . . . . . . . . . 1 . . Scanalyzer Index 2 | . . . . . . . 1 . . . . . . . . 1 . . . . . . . . . . . . Garrison Index 3 | . . . . . . . . . . . . . . . . 1 . . . . 1 . . . . 1 . . Alert Level 18 | . . . . . . . 2 . 2 . . . 1 2 . 2 . . 2 . 3 1 . . 2 1 . . Unreport Threat 27 | . 1 . 2 . . . 2 . 4 . 1 . 2 1 . 3 . . 3 . 1 5 . . 1 1 . . Locate Traps 5 | . . . 2 . . . . . . . . . . 1 . . . . 1 . . . . . . 1 . . Disarm Traps 1 | . . . . . . . . . . . . . . . . . . . . . . 1 . . . . . . Reprogram Traps 4 | . . . 1 . . . 2 . . . . . . . . . . . . . . . . . . 1 . . Hauler Manifests 1 | . . . . . . . . . . . . . . . . . . . . . . . . . . 1 . . Zone Layout 5 | . . . 1 . . . . . . . . . . . . . . . . . 1 . . . 3 . . . Garrison Registry 3 | . . . . . . . . 1 . 1 . 1 . . . . . . . . . . . . . . . . Patrol Navigation 1 | . . . . . . . . . . 1 . . . . . . . . . . . . . . . . . . Security Stations 1 | . . . . . . . . . . . . . . . . . 1 . . . . . . . . . . . Derelict Proto ID Bank 1 | . . . . . 1 . . . . . . . . . . . . . . . . . . . . . . . Fabricator Hacks 38 | . . . . . . . . . . . . . . 4 . 11 . . 11 . 7 . . . . 3 . 2 Load Schematic 18 | . . . . . . . . . . . . . . 2 . 5 . . 6 . 3 . . . . 1 . 1 Build 20 | . . . . . . . . . . . . . . 2 . 6 . . 5 . 4 . . . . 2 . 1 Repair Station Hacks 56 | . . . 5 . . . . . 8 . . . . 4 . 10 . . 6 . 12 . . . . 11 . . Scan Component 29 | . . . 3 . . . . . 4 . . . . 2 . 5 . . 3 . 6 . . . . 6 . . Repair 27 | . . . 2 . . . . . 4 . . . . 2 . 5 . . 3 . 6 . . . . 5 . . Recycling Unit Hacks . | . . . . . . . . . . . . . . . . . . . . . . . . . . . . . Scanalyzer 46 | . . . 4 . . . 2 . . . . . 12 2 . 7 . . 7 . 8 . . . . 4 . . Insert Component 21 | . . . 1 . . . 1 . . . . . 4 1 . 4 . . 4 . 4 . . . . 2 . . Analyze 25 | . . . 3 . . . 1 . . . . . 8 1 . 3 . . 3 . 4 . . . . 2 . . Garrison Access Hacks 12 | . . . . . . . 1 . 1 . 1 . . . . 2 . . 1 . 3 . . . 1 1 . 1 Unlock Access 4 | . . . . . . . 1 . 1 . 1 . . . . 1 . . . . . . . . . . . . Seal Access 8 | . . . . . . . . . . . . . . . . 1 . . 1 . 3 . . . 1 1 . 1 Unauthorized Hacks 97 | . 5 . 5 . . . 12 . 2 . . . . 7 . 19 . 3 10 . 11 5 . . 5 12 . 1 Terminals 82 | . 4 . 4 . . . 12 . 2 . . . . 5 . 13 . 3 9 . 11 3 . . 5 10 . 1 Assimilate 17 | . . . . . . . 3 . . . . . . . . 4 . 2 3 . 1 1 . . . 2 . 1 Botnet 33 | . 3 . 3 . . . 3 . 2 . . . . 3 . 4 . 1 3 . 3 2 . . 2 4 . . Operators 4 | . 1 . 1 . . . 1 . . . . . . . . . . . . . 1 . . . . . . . Skim 25 | . . . . . . . 5 . . . . . . 2 . 5 . . 3 . 6 . . . . 4 . . Sabotage 3 | . . . . . . . . . . . . . . . . . . . . . . . . . 3 . . . Fabricators . | . . . . . . . . . . . . . . . . . . . . . . . . . . . . . Repair Stations . | . . . . . . . . . . . . . . . . . . . . . . . . . . . . . Recycling Units 9 | . 1 . 1 . . . . . . . . . . . . 3 . . . . . 2 . . . 2 . . Reject 3 | . . . . . . . . . . . . . . . . 1 . . . . . 1 . . . 1 . . Mask 4 | . . . . . . . . . . . . . . . . 2 . . . . . 1 . . . 1 . . Tunnel 2 | . 1 . 1 . . . . . . . . . . . . . . . . . . . . . . . . . Scanalyzers 4 | . . . . . . . . . . . . . . 1 . 2 . . 1 . . . . . . . . . Extract 4 | . . . . . . . . . . . . . . 1 . 2 . . 1 . . . . . . . . . Garrison Access 2 | . . . . . . . . . . . . . . 1 . 1 . . . . . . . . . . . . Jam 2 | . . . . . . . . . . . . . . 1 . 1 . . . . . . . . . . . . Data Cores Recovered 2 | . . . 1 . . . . . . . . . . . . 1 . . . . . . . . . . . . Used . | . . . . . . . . . . . . . . . . . . . . . . . . . . . . . Hacking Detections 152 | . 7 . 8 . . . 7 4 6 4 2 2 5 7 . 28 2 4 26 . 16 8 2 . 5 8 . 1 Full Trace Events 52 | . 5 . 3 . . . 2 . 2 1 1 . 1 2 . 9 . 3 14 . 3 2 . . . 3 . 1 Feedback Events 1 | . . . . . . . . . . . . . . . . . . . . . . 1 . . . . . . Corruption 1 | . . . . . . . . . . . . . . . . . . . . . . 1 . . . . . . Feedback Blocked 1 | . . . . . . . . . . . . . . . . 1 . . . . . . . . . . . . Robot Schematics Acquired . | . . . . . . . . . . . . . . . . . . . . . . . . . . . . . Robots Built . | . . . . . . . . . . . . . . . . . . . . . . . . . . . . . Authchips . | . . . . . . . . . . . . . . . . . . . . . . . . . . . . . Time . | . . . . . . . . . . . . . . . . . . . . . . . . . . . . . Total Robot Build Rating . | . . . . . . . . . . . . . . . . . . . . . . . . . . . . . Part Schematics Acquired 50 | . . . . . . . 3 . . . . . 2 4 . 25 . . 5 . 6 1 . . 1 3 . . Parts Built 28 | . . . . . . . . . . . . . . 2 . 10 . . 6 . 5 . . . . 3 . 2 Authchips . | . . . . . . . . . . . . . . . . . . . . . . . . . . . . . Time 1279 | . . . . . . . . . . . . . . 159 . 359 . . 310 . 293 . . . . 100 . 58 Total Part Build Rating 165 | . . . . . . . . . . . . . . 12 . 60 . . 28 . 29 . . . . 22 . 14 Parts Repaired 27 | . . . 2 . . . . . 4 . . . . 2 . 5 . . 3 . 6 . . . . 5 . . Time 1090 | . . . 58 . . . . . 152 . . . . 78 . 159 . . 109 . 313 . . . . 221 . . Parts Recycled . | . . . . . . . . . . . . . . . . . . . . . . . . . . . . . Recycled Matter . | . . . . . . . . . . . . . . . . . . . . . . . . . . . . . Retrieved Matter . | . . . . . . . . . . . . . . . . . . . . . . . . . . . . . Retrieved Components . | . . . . . . . . . . . . . . . . . . . . . . . . . . . . . Parts Scanalyzed 17 | . . . 1 . . . . . . . . . 3 . . 3 . . 4 . 4 . . . . 2 . . Part Schematics Acquired 16 | . . . . . . . 1 . . . . . 2 1 . 3 . . 3 . 4 . . . . 2 . . Parts Damaged 4 | . . . . . . . . . . . . . 1 1 . . . . 2 . . . . . . . . . Bothacking | -11 -10 -10 -9 -9 -9 -8 -8 -8 -8 -8 -8 -8 -8 -7 -7 -7 -7 -7 -6 -6 -6 -6 -6 -6 -6 -5 -5 -5 ------------ Run | Yrd Mat Min Mat Min Exi Min Mat Gar Mat Gar Mat Gar Mat Fac Was Fac Gar Fac Fac Was Fac Ext Cet Arc Hub Fac Was Fac Used RIF Installer . | . . . . . . . . . . . . . . . . . . . . . . . . . . . . . Robots Hacked 5 | . . . . . . . . . . . . . . . . . . . 2 . . . . 3 . . . . Non-combat 2 | . . . . . . . . . . . . . . . . . . . 2 . . . . . . . . . Combat 3 | . . . . . . . . . . . . . . . . . . . . . . . . 3 . . . . Robot Hacks Applied 5 | . . . . . . . . . . . . . . . . . . . 2 . . . . 3 . . . . parse_system 3 | . . . . . . . . . . . . . . . . . . . . . . . . 3 . . . . find_chute 2 | . . . . . . . . . . . . . . . . . . . 2 . . . . . . . . . Relay Couplers Released 75 | . . . . . . . . 19 . 19 . 17 . . . . 20 . . . . . . . . . . . Machine Destruction 75 | . . . . . . . . 19 . 19 . 17 . . . . 20 . . . . . . . . . . . Fabnet Peak Effective % . | . . . . . . . . . . . . . . . . . . . . . . . . . . . . . Robots Rewired 12 | . . . . . . . . 4 . . . . . . . . 3 . . . . 5 . . . . . . Allies Hacked . | . . . . . . . . . . . . . . . . . . . . . . . . . . . . . Hacks Repelled . | . . . . . . . . . . . . . . . . . . . . . . . . . . . . . Allies | -11 -10 -10 -9 -9 -9 -8 -8 -8 -8 -8 -8 -8 -8 -7 -7 -7 -7 -7 -6 -6 -6 -6 -6 -6 -6 -5 -5 -5 -------- Run | Yrd Mat Min Mat Min Exi Min Mat Gar Mat Gar Mat Gar Mat Fac Was Fac Gar Fac Fac Was Fac Ext Cet Arc Hub Fac Was Fac Total Allies 43 | . . 3 . . . . 1 6 . . . . . . . 3 5 1 2 . 1 14 5 . . 2 . . Largest Group 16 | . . 3 3 . . . 1 5 1 . . . . . . 2 5 4 1 . 1 14 16 12 10 2 . . Highest-Rated Group 956 | . . 40 40 . . . 10 74 9 . . . . . . 52 304 224 26 . 10 566 956 752 554 36 . . Highest-Rated Ally 159 | . . 16 16 . . . 10 31 9 . . . . . . 26 95 95 26 . 10 159 159 159 96 26 . . Total Orders 56 | . . . 2 . . . . 13 . . . . . . . 5 . . 1 . 10 12 . . 7 6 . . STAY 28 | . . . 1 . . . . 6 . . . . . . . 3 . . 1 . 5 6 . . 3 3 . . ROAM 1 | . . . . . . . . 1 . . . . . . . . . . . . . . . . . . . . FOLLOW 27 | . . . 1 . . . . 6 . . . . . . . 2 . . . . 5 6 . . 4 3 . . Ally Attacks 297 | . . 5 43 . . . . 42 . . . . . . . . 7 44 . . . 97 31 7 21 . . . Total Damage 5801 | . . 29 405 . . . . 473 . . . . . . . . 363 1064 . . . 2192 742 237 296 . . . Kills 60 | . . 2 11 . . . . 6 . . . . . . . . 7 11 . . . 12 5 3 3 . . . Allies Corrupted . | . . . . . . . . . . . . . . . . . . . . . . . . . . . . . Allies Melted . | . . . . . . . . . . . . . . . . . . . . . . . . . . . . . Intel | -11 -10 -10 -9 -9 -9 -8 -8 -8 -8 -8 -8 -8 -8 -7 -7 -7 -7 -7 -6 -6 -6 -6 -6 -6 -6 -5 -5 -5 ------- Run | Yrd Mat Min Mat Min Exi Min Mat Gar Mat Gar Mat Gar Mat Fac Was Fac Gar Fac Fac Was Fac Ext Cet Arc Hub Fac Was Fac Robot Analysis Total 18 | . 4 . 2 . . . . . 3 . . . . . . 2 . . 1 . 1 4 . . 1 . . . Derelict Logs Recovered 3 | . . 2 . 1 . . . . . . . . . . . . . . . . . . . . . . . . Drone Launches . | . . . . . . . . . . . . . . . . . . . . . . . . . . . . . Drone Recoveries . | . . . . . . . . . . . . . . . . . . . . . . . . . . . . . Exploration | -11 -10 -10 -9 -9 -9 -8 -8 -8 -8 -8 -8 -8 -8 -7 -7 -7 -7 -7 -6 -6 -6 -6 -6 -6 -6 -5 -5 -5 ------------- Run | Yrd Mat Min Mat Min Exi Min Mat Gar Mat Gar Mat Gar Mat Fac Was Fac Gar Fac Fac Was Fac Ext Cet Arc Hub Fac Was Fac Turns Passed 33993 | 72 1341 581 1798 666 347 154 1446 1305 1958 1254 317 962 1281 1423 166 4214 1674 518 4001 175 3069 1868 338 256 310 1493 276 730 Spaces Moved 24656 | 41 647 358 849 403 215 97 768 659 858 642 149 422 617 1712 257 3670 747 509 3437 241 2923 1273 249 159 387 1410 286 671 Core 6 | 5 . . . . . . . . . . . . . . . . . . 1 . . . . . . . . . Treads 5564 | 36 647 358 849 403 215 97 768 357 419 296 68 86 433 . . 145 66 . . . . 321 . . . . . . Legs . | . . . . . . . . . . . . . . . . . . . . . . . . . . . . . Wheels 2591 | . . . . . . . . 302 439 346 81 . . . . 749 674 . . . . . . . . . . . Hover 16495 | . . . . . . . . . . . . 336 184 1712 257 2776 7 509 3436 241 2923 952 249 159 387 1410 286 671 Flight . | . . . . . . . . . . . . . . . . . . . . . . . . . . . . . Fastest Speed 40 | 50 160 160 160 160 160 160 160 130 130 110 125 66 71 41 45 43 43 43 43 45 40 40 59 53 59 44 55 50 Average Speed 84 | 146 160 160 160 160 160 160 160 146 156 142 140 129 139 46 45 66 133 51 46 45 45 86 66 56 60 53 63 64 Slowest Speed 800 | 160 160 160 160 160 160 160 160 160 240 240 160 240 240 110 45 280 160 108 800 45 98 420 192 119 119 186 118 131 Overloaded Moves . | . . . . . . . . . . . . . . . . . . . . . . . . . . . . . Propulsion Burnouts . | . . . . . . . . . . . . . . . . . . . . . . . . . . . . . Robots Hopped . | . . . . . . . . . . . . . . . . . . . . . . . . . . . . . Cave-ins Triggered . | . . . . . . . . . . . . . . . . . . . . . . . . . . . . . Exploration Rate (%) 62 | 3 98 85 70 79 58 24 64 92 67 88 10 52 55 45 95 79 85 19 78 86 63 91 81 94 34 27 86 13 Regions Visited 28 Branch Regions 8 Pre-discovered Areas 5 | . 1 1 1 . 1 . . . . . . . . . . 1 . . . . . . . . . . . . Known Exits Taken 7 | . . . . . . . 1 . 1 . 1 . . . . 1 . 1 . . 1 . . . 1 . . . Unknown Exits Taken 11 | 1 1 1 1 1 1 1 . . . . . . 1 . . . . . . . . 1 1 1 . . . . Scrap Searched 1 | . . . . 1 . . . . . . . . . . . . . . . . . . . . . . . . Spaces Dug 278 | . . . 1 . . . 4 1 11 21 2 1 23 17 . 29 14 15 55 . 44 1 . . 4 20 . 15 Terrain Destroyed 1177 | . . . 16 8 . . 12 112 32 30 11 3 29 17 . 30 166 15 73 145 57 13 17 . 4 71 231 85 Melee 205 | . . . 1 . . . 4 1 11 21 2 1 23 16 . 25 9 15 16 . 38 1 . . 4 17 . . Projectile 128 | . . . . . . . . . . 7 . . . 1 . 5 . . 57 . 19 7 . . . 19 . 13 AOE 844 | . . . 15 8 . . 8 111 21 2 9 2 6 . . . 157 . . 145 . 5 17 . . 35 231 72 Terrain Rammed . | . . . . . . . . . . . . . . . . . . . . . . . . . . . . . Walls Destroyed . | . . . . . . . . . . . . . . . . . . . . . . . . . . . . . Machines Disabled . | . . . . . . . . . . . . . . . . . . . . . . . . . . . . . Actions | -11 -10 -10 -9 -9 -9 -8 -8 -8 -8 -8 -8 -8 -8 -7 -7 -7 -7 -7 -6 -6 -6 -6 -6 -6 -6 -5 -5 -5 --------- Run | Yrd Mat Min Mat Min Exi Min Mat Gar Mat Gar Mat Gar Mat Fac Was Fac Gar Fac Fac Was Fac Ext Cet Arc Hub Fac Was Fac Total 35667 | 49 839 362 1152 412 220 96 919 867 1353 811 218 795 938 2220 306 5250 1270 719 5686 281 4543 1899 416 291 453 2020 352 930 Wait 8499 | . 103 1 170 2 . . 61 58 373 34 33 319 249 387 40 1343 304 181 2022 5 1467 429 140 91 53 450 5 179 Move 24631 | 40 646 357 848 402 214 96 767 658 857 641 148 421 616 1712 256 3669 746 508 3437 240 2922 1272 248 158 386 1410 285 671 Hop . | . . . . . . . . . . . . . . . . . . . . . . . . . . . . . Pick Up 190 | 2 14 1 18 . 3 . 11 . 17 7 2 3 1 4 1 31 7 2 22 3 15 9 2 . 2 7 1 5 Fast Attach 129 | 6 2 . 4 . . . 6 3 6 1 2 3 3 11 1 11 3 1 16 1 11 11 3 2 . 8 5 9 Attach 130 | . 1 . 5 . . . 2 6 6 3 4 4 . 4 . 9 8 2 12 1 10 11 3 4 2 18 8 7 Detach 57 | . . . . . . . . . 2 . . . 1 2 . 1 1 . 6 . 5 5 4 2 2 10 10 6 Swap 197 | . 3 . 11 . . . 12 11 11 13 . 1 6 6 3 36 13 1 17 2 14 14 5 3 . 8 . 7 Drop 197 | . 5 . 17 . 3 . 20 5 8 7 . 10 4 6 3 28 14 . 14 3 16 13 5 3 . 2 5 6 Fire 1070 | . 64 2 73 6 . . 34 75 56 62 18 21 28 56 . 55 102 . 111 26 37 77 6 5 4 79 33 40 Melee 422 | . . . 3 . . . 4 5 12 43 11 13 30 32 . 59 27 24 29 . 46 29 . 23 4 28 . . Ram 2 | . . . . . . . . . 2 . . . . . . . . . . . . . . . . . . . Kick . | . . . . . . . . . . . . . . . . . . . . . . . . . . . . . Crush 20 | 1 1 1 3 2 . . 2 7 3 . . . . . . . . . . . . . . . . . . . Escape Stasis 38 | . . . . . . . . . . . . . . . . 8 30 . . . . . . . . . . . Rewire 85 | . . . . . . . . 39 . . . . . . 2 . 15 . . . . 29 . . . . . . Trap . | . . . . . . . . . . . . . . . . . . . . . . . . . . . . . Miscellaneous . | . . . . . . . . . . . . . . . . . . . . . . . . . . . . . Route ------- -11/Scrapyard -10/Materials (discovered 4 exits: *Mat x3 / [*Min]) -10/Mines -9/Materials (discovered 3 exits: *Mat x2 / [*Min]) -9/Mines (discovered 2 exits: *Mat / *Exi) -9/Exiles -8/Mines -8/Materials (discovered 4 exits: *Fac x2 / *Sto / Gar) -8/Garrison (discovered 4 exits: *Mat x4) -8/Materials (discovered 3 exits: *Fac x2 / Gar) -8/Garrison (discovered 3 exits: *Mat x3) -8/Materials -8/Garrison (discovered 3 exits: *Mat x3) -8/Materials (discovered 2 exits: *Fac / *Sto) -7/Factory (discovered 2 exits: *Fac / *Low) -7/Waste -7/Factory (discovered 6 exits: *Fac x3 / *Low x2 / Gar) -7/Garrison (discovered 4 exits: *Fac x4) -7/Factory (discovered 2 exits: *Fac x2) -6/Factory (discovered 7 exits: *Fac x4 / [*Low x2] / *Ext) -6/Waste -6/Factory (discovered 8 exits: *Fac x4 / [*Low x2] / *Ext x2) -6/Extension (discovered 3 exits: *Fac x2 / *Cet) -6/Cetus (discovered 2 exits: *Fac / [*Arc]) -6/Archives (discovered 3 exits: *Fac / *Hub x2) -6/Hub_04(d) -5/Factory (discovered 6 exits: Fac x4 / Upp x2) -5/Waste -5/Factory History --------- Turn | Location | Event 33 | -11/Scrapyard | Discovered new exit (range 16) 73 | -11/Scrapyard | Entered Materials 311 | -10/Materials | Build established: Mutant 457 | -10/Materials | Discovered new exit (range 17) 765 | -10/Materials | Discovered new exit (range 9) 1094 | -10/Materials | Discovered new exit (range 15) 1379 | -10/Materials | Discovered new exit (range 15) 1414 | -10/Materials | Entered Mines 1437 | -10/Mines | Learned location of Zion (-7) 1478 | -10/Mines | Learned Materials garrison access intel 1587 | -10/Mines | Found a damaged Exp. Sensor Array with a note attached 1590 | -10/Mines | Found Prototype Device 1609 | -10/Mines | Discovered new exit (range 6) 1651 | -10/Mines | Assisted by bots powering up and referring to "LRC-V3" 1995 | -10/Mines | Entered Materials 1995 | -9/Materials | Accompanied by 3 allies 1995 | -9/Materials | Evolved 2 slots: Propulsion x1, Utility x1 2177 | -9/Materials | Central database locked down 2243 | -9/Materials | Discovered new exit (range 11) 2537 | -9/Materials | Discovered new exit (range 11) 3003 | -9/Materials | Identified Exp. Sensor Array 3181 | -9/Materials | Lost 3 parts (1n1u1w) 3195 | -9/Materials | Discovered new exit (range 5) 3377 | -9/Materials | Repaired Hvy. EM Pulse Gun 3404 | -9/Materials | Repaired Lgt. Armor Plating 3444 | -9/Materials | Build established: Scavenger-Mutant 3793 | -9/Materials | Entered Mines 3795 | -9/Mines | Met a Derelict bent on vengeance 3940 | -9/Mines | Received a Rocket Launcher from a helpful Derelict 4044 | -9/Mines | Deemed a non-threat by the Exiles lab entrance 4044 | -9/Mines | Discovered new exit (range 5) 4091 | -9/Mines | Learned Materials terminal intel 4108 | -9/Mines | Discovered new exit (range 8) 4459 | -9/Mines | Entered Exiles 4506 | -9/Exiles | Met 8R-AWN 4533 | -9/Exiles | Met EX-HEX 4576 | -9/Exiles | Met EX-BIN 4614 | -9/Exiles | Aligned with FarCom system 4616 | -9/Exiles | Given EX-Vault access code 4653 | -9/Exiles | Opened EX-Vault 4690 | -9/Exiles | Warned to stay clear of 0b10 Research branches 4792 | -9/Exiles | Discovered new exit (range 10) 4806 | -9/Exiles | Entered Mines 4858 | -8/Mines | Discovered new exit (range 5) 4960 | -8/Mines | Entered Materials 4960 | -8/Materials | Evolved 2 slots: Utility x2 4961 | -8/Materials | Loaded intel: 12 terminal locations 4962 | -8/Materials | Loaded intel: 1 garrison access location 5542 | -8/Materials | Met 7R-MNS 5619 | -8/Materials | Identified exit to Garrison 5629 | -8/Materials | Discovered new exit (range 3) 6021 | -8/Materials | Discovered new exit (range 13) 6085 | -8/Materials | Discovered new exit (range 10) 6406 | -8/Materials | Entered Garrison 6406 | -8/Garrison | Accompanied by 1 ally 6432 | -8/Garrison | Rescued a captive Derelict 6437 | -8/Garrison | Rescued a captive Derelict 6548 | -8/Garrison | Garrison Relay disabled 6588 | -8/Garrison | Triggered checkpoint 6634 | -8/Garrison | Triggered checkpoint 6772 | -8/Garrison | Triggered checkpoint 7028 | -8/Garrison | Discovered new exit (range 13) 7080 | -8/Garrison | Garrison Relay disabled 7110 | -8/Garrison | Phase Generator disabled 7156 | -8/Garrison | Triggered checkpoint 7201 | -8/Garrison | Discovered new exit (range 5) 7345 | -8/Garrison | Lost 4 allies 7432 | -8/Garrison | Discovered new exit (range 11) 7465 | -8/Garrison | Discovered new exit (range 14) 7465 | -8/Garrison | Discovered new exit (range 66) 7465 | -8/Garrison | Discovered new exit (range 52) 7465 | -8/Garrison | Discovered new exit (range 51) 7498 | -8/Garrison | Garrison Relay disabled 7593 | -8/Garrison | Build established: Mutant 7675 | -8/Garrison | Triggered checkpoint 7711 | -8/Garrison | Entered Materials 7711 | -8/Materials | Accompanied by 1 ally 7763 | -8/Materials | Repaired Hrd. Medium Armor Plating 8096 | -8/Materials | Build established: Hacker-Mutant 8292 | -8/Materials | Discovered new exit (range 6) 8535 | -8/Materials | Repaired EM Pulse Cannon 8580 | -8/Materials | Repaired Flak Gun 8613 | -8/Materials | Repaired Imp. Treads 9191 | -8/Materials | Build established: Mutant 9400 | -8/Materials | Discovered new exit (range 6) 9666 | -8/Materials | Identified exit to Garrison 9669 | -8/Materials | Entered Garrison 9829 | -8/Garrison | Triggered checkpoint 9870 | -8/Garrison | Garrison Relay disabled 9902 | -8/Garrison | Garrison Relay disabled 9950 | -8/Garrison | Triggered checkpoint 9957 | -8/Garrison | Triggered checkpoint 10023 | -8/Garrison | Triggered checkpoint 10092 | -8/Garrison | Build established: Scavenger-Mutant 10115 | -8/Garrison | Triggered checkpoint 10185 | -8/Garrison | Garrison Relay disabled 10242 | -8/Garrison | Discovered new exit (range 9) 10274 | -8/Garrison | Spotted B-75 Beast 10281 | -8/Garrison | Core integrity fell below 50% 10292 | -8/Garrison | Destroyed B-75 Beast 10453 | -8/Garrison | Triggered checkpoint 10515 | -8/Garrison | Discovered new exit (range 8) 10574 | -8/Garrison | Build established: Mutant 10617 | -8/Garrison | Garrison Relay disabled 10733 | -8/Garrison | Triggered checkpoint 10848 | -8/Garrison | Garrison Relay disabled 10904 | -8/Garrison | Discovered new exit (range 66) 10904 | -8/Garrison | Discovered new exit (range 41) 10904 | -8/Garrison | Discovered new exit (range 12) 10923 | -8/Garrison | Entered Materials 11009 | -8/Materials | Core integrity fell below 20% 11106 | -8/Materials | Lost 3 parts (1p1n1u) 11125 | -8/Materials | Identified exit to Garrison 11240 | -8/Materials | Entered Garrison 11271 | -8/Garrison | Discovered new exit (range 72) 11271 | -8/Garrison | Discovered new exit (range 37) 11271 | -8/Garrison | Discovered new exit (range 53) 11309 | -8/Garrison | Garrison Relay disabled 11340 | -8/Garrison | Triggered checkpoint 11519 | -8/Garrison | Triggered checkpoint 11721 | -8/Garrison | Build established: Hacker-Mutant 11842 | -8/Garrison | Garrison Relay disabled 11846 | -8/Garrison | Triggered checkpoint 12202 | -8/Garrison | Entered Materials 12727 | -8/Materials | Identified exit to Storage 13432 | -8/Materials | Discovered new exit (range 14) 13483 | -8/Materials | Entered Factory 13483 | -7/Factory | Evolved 2 slots: Propulsion x1, Utility x1 13558 | -7/Factory | Repaired Broken Linear Gravjet? 13713 | -7/Factory | Build established: Hacker-Scout 13863 | -7/Factory | Discovered new exit (range 12) 13988 | -7/Factory | Lost 3 parts (1p1n1u) 14271 | -7/Factory | Repaired Broken Variable Charge Gun 14786 | -7/Factory | Fabricated Linear Gravjet? 14897 | -7/Factory | Discovered new exit (range 4) 14906 | -7/Factory | Sucked down chute 14906 | -7/Factory | Entered Waste 14906 | -7/Waste | The area was eerily silent 15014 | -7/Waste | Discovered new exit (range 16) 15072 | -7/Waste | Entered Factory 15150 | -7/Factory | Discovered new exit (range 15) 15225 | -7/Factory | Fabricated Linear Gravjet? 15380 | -7/Factory | Fabricated Linear Gravjet? 15985 | -7/Factory | Learned location of 1 exit from Cetus 16030 | -7/Factory | Learned location of 2 exits from Upper Caves 16044 | -7/Factory | Identified exit to Lower Caves 16064 | -7/Factory | Identified exit to Factory 16086 | -7/Factory | Learned Extension trap positions 16117 | -7/Factory | Learned location of 2 exits from Factory 16142 | -7/Factory | Repaired Lrn. Terrain Scanner 16429 | -7/Factory | Repaired Gravmag System 16453 | -7/Factory | Repaired Gravmag System 16504 | -7/Factory | Repaired Gravmag System 16898 | -7/Factory | Identified exit to Garrison 16899 | -7/Factory | Discovered exit to Factory (range 13) 16915 | -7/Factory | Fabricated Imp. Hacking Suite? 17000 | -7/Factory | Fabricated HERF Cannon? 17389 | -7/Factory | Build established: Hacker-Mutant 17406 | -7/Factory | Fabricated Adv. System Restoration Module (x2) 18091 | -7/Factory | Fabricated Imp. Hacking Suite? 19128 | -7/Factory | Repaired HERF Cannon 19286 | -7/Factory | Entered Garrison 19389 | -7/Garrison | Core integrity fell below 50% 19502 | -7/Garrison | Triggered checkpoint 19637 | -7/Garrison | Garrison Relay disabled 19711 | -7/Garrison | Triggered checkpoint 19711 | -7/Garrison | Triggered checkpoint 19814 | -7/Garrison | Triggered checkpoint 19876 | -7/Garrison | Destroyed 9 combat bots 19974 | -7/Garrison | Triggered checkpoint 19989 | -7/Garrison | Garrison Relay disabled 20098 | -7/Garrison | Discovered new exit (range 10) 20110 | -7/Garrison | Build established: Scavenger-Mutant 20301 | -7/Garrison | Destroyed 7 combat bots 20354 | -7/Garrison | Triggered checkpoint 20362 | -7/Garrison | Found embedded Infiltrators 20403 | -7/Garrison | Garrison Relay disabled 20476 | -7/Garrison | Discovered new exit (range 8) 20500 | -7/Garrison | Triggered checkpoint 20516 | -7/Garrison | Discovered new exit (range 5) 20585 | -7/Garrison | Build established: Mutant 20713 | -7/Garrison | Phase Generator disabled 20722 | -7/Garrison | Discovered new exit (range 5) 20774 | -7/Garrison | Triggered checkpoint 20775 | -7/Garrison | Garrison Relay disabled 20813 | -7/Garrison | Learned Factory security intel 20908 | -7/Garrison | Garrison Relay disabled 20960 | -7/Garrison | Entered Factory 20960 | -7/Factory | Accompanied by 4 allies 21360 | -7/Factory | First assault squad dispatched 21421 | -7/Factory | Core integrity fell below 20% 21478 | -7/Factory | Entered another Factory area 21478 | -6/Factory | Evolved 2 slots: Propulsion x1, Utility x1 21562 | -6/Factory | Discovered new exit (range 13) 21583 | -6/Factory | Build established: Scout 21915 | -6/Factory | Discovered new exit (range 15) 22119 | -6/Factory | Repaired Linear Gravjet 22169 | -6/Factory | Discovered new exit (range 9) 22382 | -6/Factory | Fabricated Imp. Hacking Suite? 22904 | -6/Factory | Discovered new exit (range 8) 22950 | -6/Factory | Build established: Hacker-Scout 23031 | -6/Factory | Fabricated Imp. System Shield? 23032 | -6/Factory | Lost 5 parts (1p1n2u1w) 23285 | -6/Factory | Build established: Scout 23430 | -6/Factory | Lost 4 parts (2n2u) 23480 | -6/Factory | Repaired HERF Cannon 23547 | -6/Factory | Repaired Gravmag Array 24015 | -6/Factory | Discovered new exit (range 11) 24058 | -6/Factory | Fabricated Imp. System Shield? 24259 | -6/Factory | Build established: Hacker-Scout 24477 | -6/Factory | Fabricated Imp. Hacking Suite (x1) 24511 | -6/Factory | Discovered new exit (range 23) 25130 | -6/Factory | Discovered new exit (range 3) 25298 | -6/Factory | Fabricated Corruption Screen (x2) 25479 | -6/Factory | Sucked down chute 25479 | -6/Factory | Entered Waste 25494 | -6/Waste | EMP discharged 25509 | -6/Waste | Found Gamma Bomb Array 25515 | -6/Waste | Spotted C-40 Crusher 25551 | -6/Waste | Spotted C-40 Crusher 25557 | -6/Waste | Spotted C-40 Crusher 25568 | -6/Waste | Destroyed C-40 Crusher 25570 | -6/Waste | Spotted C-40 Crusher 25578 | -6/Waste | Destroyed C-40 Crusher 25591 | -6/Waste | Spotted C-40 Crusher 25594 | -6/Waste | EMP discharged 25596 | -6/Waste | Destroyed C-40 Crusher 25600 | -6/Waste | Destroyed C-40 Crusher 25613 | -6/Waste | Spotted C-40 Crusher 25648 | -6/Waste | Discovered new exit (range 13) 25654 | -6/Waste | Entered Factory 25763 | -6/Factory | Spotted B-75 Beast 26187 | -6/Factory | Repaired Gamma Bomb Array 26430 | -6/Factory | Discovered new exit (range 16) 26467 | -6/Factory | Discovered new exit (range 16) 26532 | -6/Factory | Discovered new exit (range 14) 26645 | -6/Factory | Identified exit to Extension 26645 | -6/Factory | Identified exit to Factory 26669 | -6/Factory | Learned 2 Proximity Caves zone layouts 26671 | -6/Factory | Central database locked down 26684 | -6/Factory | Learned 2 Proximity Caves zone layouts 26687 | -6/Factory | Loaded intel: 66 trap records 26689 | -6/Factory | Learned location of 1 exit from Hub_04(d) 26694 | -6/Factory | Learned 2 Upper Caves zone layouts 26719 | -6/Factory | Fabricated Linear Gravjet? 26736 | -6/Factory | Learned Factory emergency access door positions 26927 | -6/Factory | Discovered new exit (range 12) 27591 | -6/Factory | Fabricated Hrd. Heavy Armor Plating? 27615 | -6/Factory | Fabricated Com. HERF Cannon? 27853 | -6/Factory | Repaired Corrupted Com. HERF Cannon? 27957 | -6/Factory | Repaired Gravmag System 28038 | -6/Factory | Repaired Cld. Aerolev Unit 28257 | -6/Factory | Repaired Gravmag Array 28326 | -6/Factory | Fabricated Imp. Hacking Suite? 28704 | -6/Factory | Repaired Hvy. Rocket Launcher 28723 | -6/Factory | Entered Extension 28724 | -6/Extension | Loaded intel: 27 trap records 28730 | -6/Extension | Disrupted transfer network 29140 | -6/Extension | Build established: Hacker-Mutant 29279 | -6/Extension | Core integrity fell below 50% 29530 | -6/Extension | Rescued A7 29661 | -6/Extension | Rescued a captive Derelict 29661 | -6/Extension | Rescued a captive Derelict 29783 | -6/Extension | Rescued a captive Derelict 29850 | -6/Extension | Rescued a captive Derelict 29851 | -6/Extension | Rescued a captive Derelict 30098 | -6/Extension | Spotted B-75 Beast 30104 | -6/Extension | Allies destroyed B-75 Beast 30110 | -6/Extension | Spotted B-75 Beast 30131 | -6/Extension | Allies destroyed B-75 Beast 30165 | -6/Extension | Discovered exit to Factory (range 5) 30255 | -6/Extension | Rescued a captive Derelict 30293 | -6/Extension | Rescued a captive Derelict 30315 | -6/Extension | Rescued a captive Derelict 30450 | -6/Extension | Central database locked down 30470 | -6/Extension | Discovered exit to Factory (range 10) 30471 | -6/Extension | Discovered new exit (range 6) 30591 | -6/Extension | Entered Cetus 30591 | -6/Cetus | Accompanied by 13 allies (A7) 30596 | -6/Cetus | Acquired a Cetus Manufacturing Module code from A7 30612 | -6/Cetus | Spotted Cetus Guard 30612 | -6/Cetus | Spotted Cetus Guard 30614 | -6/Cetus | Spotted Cetus Guard 30614 | -6/Cetus | Spotted Cetus Guard 30618 | -6/Cetus | Allies destroyed Cetus Guard 30621 | -6/Cetus | Destroyed Cetus Guard 30626 | -6/Cetus | Allies destroyed Cetus Guard 30628 | -6/Cetus | Allies destroyed Cetus Guard 30660 | -6/Cetus | Started Cetus Manufacturing Module 30685 | -6/Cetus | Manufactured an Enhanced Grunt 30706 | -6/Cetus | Escorted A7 to Cetus Mainframe 30710 | -6/Cetus | Manufactured an Enhanced Grunt 30735 | -6/Cetus | Manufactured an Enhanced Grunt 30760 | -6/Cetus | Manufactured an Enhanced Grunt 30785 | -6/Cetus | Manufactured an Enhanced Grunt 30808 | -6/Cetus | Discovered new exit (range 15) 30841 | -6/Cetus | Spotted Cetus Guard 30841 | -6/Cetus | Spotted Cetus Guard 30844 | -6/Cetus | Spotted Cetus Guard 30844 | -6/Cetus | Spotted Cetus Guard 30845 | -6/Cetus | Destroyed Cetus Guard 30848 | -6/Cetus | Core integrity fell below 20% 30850 | -6/Cetus | Allies destroyed Cetus Guard 30854 | -6/Cetus | Destroyed Cetus Guard 30859 | -6/Cetus | Allies destroyed Cetus Guard 30872 | -6/Cetus | Met Revision 17 30880 | -6/Cetus | Lost 4 allies 30885 | -6/Cetus | Found Prototype Device 30885 | -6/Cetus | Identified Exp. Thermal Shield 30929 | -6/Cetus | Entered Archives 30929 | -6/Archives | Accompanied by 12 allies (A7) 30934 | -6/Archives | Received a hacking code to weaken MAIN.C 30959 | -6/Archives | Discovered new exit (range 16) 31029 | -6/Archives | Build established: Commander-Mutant 31058 | -6/Archives | Discovered exit to Factory (range 16) 31118 | -6/Archives | Discovered new exit (range 13) 31185 | -6/Archives | Entered Hub_04(d) 31185 | -6/Hub_04(d) | Accompanied by 10 allies 31401 | -6/Hub_04(d) | Network Hub disabled 31432 | -6/Hub_04(d) | Lost 5 allies 31432 | -6/Hub_04(d) | Network Hub disabled 31448 | -6/Hub_04(d) | Disrupted transfer network 31466 | -6/Hub_04(d) | Spotted Lightning 31480 | -6/Hub_04(d) | Spotted Lightning 31493 | -6/Hub_04(d) | Spotted Lightning 31494 | -6/Hub_04(d) | Spotted Lightning 31494 | -6/Hub_04(d) | Spotted Lightning 31495 | -6/Hub_04(d) | Entered Factory 31495 | -5/Factory | Evolved 2 slots: Propulsion x1, Utility x1 31496 | -5/Factory | Identified exit to Upper Caves 31616 | -5/Factory | Repaired Centrium Medium Armor Plating 31672 | -5/Factory | Repaired Centrium Medium Armor Plating? 31701 | -5/Factory | Build established: Hacker-Mutant 31718 | -5/Factory | Garrison activated, responded to threat 32210 | -5/Factory | Cargo convoy interrupted 32392 | -5/Factory | Fabricated Lrn. Terrain Scanner? 32423 | -5/Factory | Identified exit to Factory 32490 | -5/Factory | Central database locked down 32520 | -5/Factory | Fabricated Imp. Heavy Siege Treads? 32611 | -5/Factory | Repaired Com. HERF Cannon 32666 | -5/Factory | Repaired Centrium Medium Armor Plating 32693 | -5/Factory | Repaired Imp. Gravmag System 32915 | -5/Factory | Lost 6 parts (4n1u1w) 32988 | -5/Factory | Sucked down chute 32988 | -5/Factory | Entered Waste 33024 | -5/Waste | Found Prototype Device 33024 | -5/Waste | Identified Thermal Barrier 33025 | -5/Waste | Spotted C-40 Crusher 33028 | -5/Waste | Spotted C-40 Crusher 33032 | -5/Waste | Spotted C-40 Crusher 33032 | -5/Waste | Spotted C-40 Crusher 33048 | -5/Waste | Destroyed C-40 Crusher 33076 | -5/Waste | Destroyed C-40 Crusher 33092 | -5/Waste | Spotted C-40 Crusher 33116 | -5/Waste | Destroyed C-40 Crusher 33127 | -5/Waste | Spotted C-40 Crusher 33144 | -5/Waste | Destroyed C-40 Crusher 33195 | -5/Waste | Destroyed C-40 Crusher 33195 | -5/Waste | Destroyed C-40 Crusher 33254 | -5/Waste | Discovered new exit (range 12) 33264 | -5/Waste | Entered Factory 33901 | -5/Factory | Fabricated Lrn. Terrain Scanner (x2) 33994 | -5/Factory | Core integrity fell below 50% 33994 | -5/Factory | System corruption reached 10% 33994 | -5/Factory | Self-destructed Last Messages --------------- 33969_ Fission Core destroyed. 33969_ R-10 Processor collects Adv. Heat Sink. 33972_ U-05 Engineer builds a Wall. 33974_ Lrn. Terrain Scanner destroyed. 33974_ K-01 Serf collects debris. 33979_ System corrupted: Matter fused (-5). 33982_ K-01 Serf collects debris. 33984_ U-05 Engineer builds a Wall. 33984_ Critical hit (Burn: +50). 33984_ Destroyed Unknown Wheel. 33984_ R-10 Processor destroyed. 33985_ Cmb. Airjet destroyed. 33988_ Destroyed Lgt. Ion Engine. 33988_ Destroyed Imp. Heat Sink. 33989_ U-05 Engineer lays Concrete. 33990_ K-01 Serf destroyed. 33990_ U-05 Engineer lays Concrete. 33993_ G-67 Veteran misfires. 33993_ Hvy. Rocket Launcher destroyed. 33993_ U-05 Engineer lays Concrete. Map ----- +----------------------------------------------------+ | ?????????????????????????????????????????????????? | | ?????????????????????#???#???????????????????????? | | ??????????????????????##???????#?????????????????? | | ??????????????#?#??#?#?#?????###??#??????????????? | | ??????????????#????##???####?##?##?##????????????? | | ????????????#######?###?###?###?#?#####??????????? | | ???????????#???#???#??#?#?####?#?????????????????? | | ???????????###????######?####?#???##??###????????? | | ?????????##?#??##?#??####???#??###?#???##????????? | | ????????##??###?##????####??###??#?##????? ??? | | ????????#?###?##??##????##?#####?? ?? ? # ??? | | ??????###?#??#?#?#?##??#?####?#?"? ? ? # #?? | | ??????#??##?###?#??##??#?#####?#?? # #?? | | ??????#???##?#?##?#??##?#??#####?T ?? # #?? | | ?????? ?#?#?####??#?####?#?#??#"" ?""??+ ##? | | ??? ??? #######????##?##?###??##""? ?""?# #?? | | ????"? ??#?##??###?###???##?#??? ?? """?# ##? | | ?????"? ???####??#??######?#?##? ? # ### | | ???"?" ?#?##????##?##?###############??### | | ???? ??##? ? ? ? ## ####?# | | ?????#??## ??## [ ##?### " | | ?? ? ?#?????? ?? ?? ?## ##??## """ " | | ??? ?#?### ? ? ? ?## ####?# """ | | ???? ?##?#? ??? """"?## ###### """ | | ??# ??#?????? ??"""???# [ ##??## | | ??#?#?#?## ? ?? ?""???# @ ##### """ " | | ??# ##?#?#? ? ?""" ?# %u ###?#T """ " | | ??#??##??# ?""" ## g ##?### """ " | | ??#??##?##? ? ?"""???# #?##?# | | ??# ###??#?????? """" ?# g #?# | | ?? ? ??? ?? ??## g ######+### | | ????#?????#?#?##+????#?### ! # | | ???? ? ??# ??? +? ???=!%!* pp g ! "" # | | ???# ?? ? ????? ??? """ ? ! !g """ # | | ???+ ? ? ? ?#?? ??"R ! !! F" # | | ??????"? ?"? + ? ??"? """ # | | ???? ?"" ?"" # #?? ? "" # | | ?????"""??"? # #??? ?? # ## # | | ????? ? # # ? ? # ################ | | ?????? ?? # ##?#?##?# | | ????????#?#??# ######### ^ | | ?????######### # # ^ ""G"" | | ?????# # # # " " | | ?????# """ # # # | | ?????# """ # # # ########## | | ?????# """ # # # """ """ #????##?## | | ?????# # # # """ """ #? ????? | | ?????# """ # # # """ """ #??? ??? | | ?????# """ # / # #??? ??? | | ###### """ # # + """ """ +??????? | +----------------------------------------------------+ Best States ------------- Heat Dissipation 71 Energy Generation 21 Energy Capacity 500 Matter Stores 300 Matter Capacity 300 Sight Range 22 Terrain Scan Range 24 Terrain Scan Density 410 Corruption Block 8 Armor Coverage 1200 Resistance: TH 30 Core Shielding 20 Utility Shielding 33 Evasion (%) 57 Targeting Accuracy 8 Melee Accuracy 6 Recoil Reduction 3 Matter Filtering 50 Salvage Targeting 3 Offensive Hacking 30 Defensive Hacking 22 Item Schematics ----------------- Hacking Suite | -8/Materials | Hacked System Shield | -8/Materials | Hacked Exp. Sensor Array | -8/Materials | Scanalyzed Linear Gravjet | -8/Materials | Scanalyzed Adv. System Restoration Module | -8/Materials | Scanalyzed Variable Charge Gun | -7/Factory | Scanalyzed Hrd. Heavy Armor Plating | -7/Factory | Extracted Pulse Rifle | -7/Factory | Extracted Med. Matter Pod | -7/Factory | Extracted Imp. Targeting Computer | -7/Factory | Extracted Mace | -7/Factory | Extracted Transmission Jammer | -7/Factory | Extracted Arm. Treads | -7/Factory | Extracted Lgt. Nuclear Core | -7/Factory | Extracted Imp. Terrain Scan Processor | -7/Factory | Extracted Com. Matter Pod | -7/Factory | Extracted Flak Gun | -7/Factory | Extracted Carbon-fiber Leg | -7/Factory | Extracted Cld. VTOL Module | -7/Factory | Extracted Scythe | -7/Factory | Extracted Hvy. Shock Bomb Launcher | -7/Factory | Scanalyzed Armor Integrity Analyzer | -7/Factory | Extracted Minigun | -7/Factory | Extracted Hvy. Deuterium Engine | -7/Factory | Extracted Kinecellerator | -7/Factory | Extracted Imp. Field Recycling Unit | -7/Factory | Extracted Lgt. Armored Exoskeleton | -7/Factory | Extracted Adv. Treads | -7/Factory | Extracted Imp. Datajack | -7/Factory | Extracted Utility Shielding | -7/Factory | Extracted Corruption Screen | -7/Factory | Extracted Adv. Targeting Computer | -7/Factory | Scanalyzed Lrn. Terrain Scanner | -7/Factory | Scanalyzed Imp. Hacking Suite | -7/Factory | Hacked Imp. Heavy Treads | -6/Factory | Scanalyzed HERF Cannon | -6/Factory | Scanalyzed Imp. Heavy Armor Plating | -6/Factory | Scanalyzed Imp. System Shield | -6/Factory | Hacked Imp. Particle Charger | -6/Factory | Extracted Adv. Terrain Scan Processor | -6/Factory | Hacked Com. HERF Cannon | -6/Factory | Scanalyzed Adv. Trap Extractor | -6/Factory | Scanalyzed Gamma Bomb Array | -6/Factory | Scanalyzed Magnetic Acceleration Cannon | -6/Factory | Scanalyzed Adv. Cooling System | -6/Factory | Hacked Imp. Gyrokinetic Inverter | -6/Extension | Hacked Centrium Wheel | -6/Hub_04(d) | Hacked Centrium Heavy Treads | -5/Factory | Scanalyzed Centrium Medium Armor Plating | -5/Factory | Scanalyzed Adv. Hacking Suite | -5/Factory | Hacked Robot Schematics ------------------ None Fabricated ------------ Linear Gravjet | x2 | -7/Factory Linear Gravjet | x2 | -7/Factory Linear Gravjet | x2 | -7/Factory Imp. Hacking Suite | x1 | -7/Factory HERF Cannon | x2 | -7/Factory | Preloaded Adv. System Restoration Module | x2 | -7/Factory Imp. Hacking Suite | x1 | -7/Factory Imp. Hacking Suite | x1 | -6/Factory Imp. System Shield | x1 | -6/Factory Imp. System Shield | x1 | -6/Factory Imp. Hacking Suite | x1 | -6/Factory Corruption Screen | x2 | -6/Factory Linear Gravjet | x2 | -6/Factory | Preloaded Hrd. Heavy Armor Plating | x1 | -6/Factory Com. HERF Cannon | x1 | -6/Factory Imp. Hacking Suite | x1 | -6/Factory Lrn. Terrain Scanner | x2 | -5/Factory Imp. Heavy Siege Treads | x1 | -5/Factory | Preloaded Lrn. Terrain Scanner | x2 | -5/Factory Alien Tech Used ----------------- None Achievements -------------- None Challenges ------------ None Game ------ Seed MiningTeleporterVibroblade Manual? 0 Play Time 05:48:49 Cumulative 163.2 hours Start 2024.11.01 @ 18:43:28 End 2024.11.04 @ 00:00:25 Sessions 27 Manual Loads 0 Difficulty Rogue Special Mode None Game No. 104 Rogue 68 Adventurer 36 Explorer 0 Win Type - Total 3 Types 2/0/0/1/0/0/0/0/0 Lore% 55 Gallery% 64 Achievement% 56 Wizard Run 0 Options --------- Layout 1 ASCII 0 Keyboard 0 Movement Numpad Keybinds 0 Fullscreen 1 Font 48/Smallcaps Map View 50x35 Zoom Use 0% Tactical HUD 1 Map Filters NONE Filters NONE Steam 1 RUN: 03ea5d5e-05fc-491b-a9e0-d83b5e05f3ac